bitfinex-derivatives/quotes_SOLF0:USTF0_20241226
["timestamp","ask_amount","ask_price","bid_price","bid_amount"]
[1735226961662,2.6411,189.54,189.49,2.6416]
[1735226968261,7.85165909,189.53,189.49,2.6416]
[1735226969271,4.7671,189.61,189.47,7.85165909]
[1735226969572,7.85165909,189.57,189.49,7.85165909]
[1735226969771,11.33165909,189.59,189.56,2.6407]
[1735226970272,3.48,189.59,189.47,12.26064676]
[1735226971374,2.6405,189.58,189.52,2.6411]
[1735226972277,3.48,189.6,189.55,2.6407]
[1735226972576,3.48,189.6,189.47,12.26064676]
[1735226973077,2.6403,189.59,189.53,2.641]
[1735226974873,2.6403,189.59,189.54,2.6408]
[1735226975074,3.48,189.59,189.47,12.26064676]
[1735226975479,3.48,189.59,189.53,2.641]
[1735226975681,6.1203,189.59,189.47,12.26064676]
[1735226976081,6.1203,189.59,189.53,2.641]
[1735226976875,6.1203,189.59,189.52,2.6412]
[1735226976876,2.6406,189.57,189.52,2.6412]
[1735226977078,15.74064676,189.59,189.52,2.6412]
[1735226977279,15.74064676,189.59,189.46,7.25317188]
[1735226977480,2.6407,189.56,189.5,2.6414]
[1735226977678,15.74064676,189.59,189.45,4.7504]
[1735226977879,2.6411,189.53,189.48,2.6417]
[1735226978076,3.48,189.54,189.45,4.7504]
[1735226979482,2.6412,189.53,189.47,2.6418]
[1735226979680,3.48,189.54,189.45,4.7504]
[1735226979882,12.26064676,189.53,189.42,7.25317188]
[1735226980283,12.26064676,189.53,189.4,33.82318752]
[1735226980474,3.48,189.52,189.4,46.08383428]
[1735226980680,3.48,189.52,189.43,12.26064676]
[1735226980877,3.48,189.55,189.43,12.26064676]
[1735226981082,3.48,189.55,189.46,2.642]
[1735226981282,3.48,189.55,189.43,12.26064676]
[1735226981782,3.48,189.55,189.5,2.6414]
[1735226982579,6.1208,189.55,189.5,2.6414]
[1735226983189,3.48,189.55,189.5,2.6414]
[1735226984183,6.1209,189.55,189.5,2.6414]
[1735226985794,2.6409,189.54,189.49,2.6414]
[1735226985996,3.48,189.55,189.43,41.27333428]
[1735226986287,3.48,189.57,189.46,12.26064676]
[1735226986492,3.48,189.57,189.47,8.2002]
[1735226986892,3.48,189.57,189.49,12.26064676]
[1735226987586,3.2296,189.63,189.49,12.26064676]
[1735226987788,12.26064676,189.65,189.52,12.26064676]
[1735226987789,3.48,189.62,189.52,12.26064676]
[1735226989194,15.74064676,189.62,189.5,29.08005037]
[1735226989993,15.74064676,189.62,189.47,107.49890932]
[1735226990397,2.64,189.59,189.54,2.6406]
[1735226991095,6.0796,189.63,189.5,12.26064676]
[1735226991294,3.44,189.63,189.5,12.26064676]
[1735226991695,4.8212,189.68,189.56,12.26064676]
[1735226991894,12.26064676,189.72,189.56,12.26064676]
[1735226992099,2.6387,189.69,189.63,2.6394]
[1735226992402,12.26064676,189.69,189.57,4.6727]
[1735226992593,3.44,189.69,189.57,4.6727]
[1735226993196,3.44,189.69,189.54,3.44]
[1735226993197,12.26064676,189.66,189.51,12.26064676]
[1735226993393,12.26064676,189.66,189.52,1.5393]
[1735226993799,2.6394,189.64,189.58,2.64]
[1735226994011,12.26064676,189.63,189.52,1.5393]
[1735226994304,2.6399,189.6,189.55,2.6405]
[1735226994504,12.26064676,189.63,189.52,1.5393]
[1735226994904,2.6403,189.58,189.52,2.6409]
[1735226995202,3.44,189.58,189.49,29.03491484]
[1735226995403,3.44,189.58,189.46,30.57421484]
[1735226995608,12.26064676,189.55,189.46,30.57421484]
[1735226996002,2.6408,189.53,189.47,2.6415]
[1735226996198,3.44,189.53,189.46,30.57421484]
[1735226996706,3.44,189.53,189.46,1.5393]
[1735226997406,3.44,189.53,189.48,2.6415]
[1735226997904,2.6396,189.63,189.54,2.6407]
[1735226998208,3.44,189.64,189.49,12.26064676]
[1735226998408,3.2956,189.67,189.5,3.44]
[1735226998610,2.6393,189.64,189.57,2.6402]
[1735226998809,3.44,189.66,189.57,2.6402]
[1735226999610,2.6394,189.63,189.58,2.6401]
[1735226999809,2.6394,189.63,189.53,4.6785]
[1735227000007,3.44,189.66,189.53,4.6785]
[1735227000202,2.6396,189.62,189.53,4.6785]
[1735227000404,4.962,189.68,189.57,12.26064676]
[1735227000603,7.6007,189.68,189.62,2.6395]
[1735227000806,4.962,189.68,189.54,12.26064676]
[1735227001006,1.522,189.68,189.54,12.26064676]
[1735227001203,1.522,189.68,189.53,4.6785]
[1735227001204,12.26064676,189.66,189.53,4.6785]
[1735227001407,12.26064676,189.63,189.53,4.6785]
[1735227001703,2.6399,189.6,189.53,1.5729]
[1735227001904,3.44,189.62,189.52,2.6409]
[1735227002110,3.44,189.62,189.51,7.25872871]
[1735227002111,15.70064676,189.62,189.51,7.25872871]
[1735227002413,2.6401,189.59,189.48,4.8475]
[1735227002804,3.44,189.62,189.48,4.8475]
[1735227003007,2.6403,189.57,189.51,2.6411]
[1735227003207,6.0803,189.57,189.51,2.6411]
[1735227004613,3.44,189.57,189.52,2.641]
[1735227006302,3.44,189.57,189.48,4.8475]
[1735227006508,3.44,189.57,189.45,7.25872871]
[1735227006907,3.44,189.64,189.49,19.61702392]
[1735227007105,3.44,189.64,189.5,5.0644]
[1735227007307,6.0793,189.64,189.58,2.6401]
[1735227007712,3.44,189.64,189.5,5.0644]
[1735227008015,3.44,189.64,189.5,1.6244]
[1735227008218,1.5618,189.63,189.5,1.6244]
[1735227008914,4.8152,189.63,189.5,1.6244]
[1735227009315,2.6401,189.59,189.53,2.6408]
[1735227009511,3.44,189.58,189.45,48.65193876]
[1735227009709,3.44,189.57,189.45,34.11711484]
[1735227009912,3.44,189.56,189.45,34.11711484]
[1735227010207,3.44,189.55,189.45,34.11711484]
[1735227010411,3.44,189.55,189.5,2.6412]
[1735227011115,3.44,189.55,189.45,1.6422]
[1735227011618,2.6408,189.54,189.48,2.6415]
[1735227011808,3.44,189.55,189.45,1.6422]
[1735227012011,3.44,189.55,189.42,7.25872871]
[1735227012209,2.6413,189.5,189.44,2.6421]
[1735227012515,3.44,189.49,189.44,2.6421]
[1735227013018,3.44,189.49,189.4,29.03491484]
[1735227013019,3.44,189.49,189.42,2.6423]
[1735227013318,3.44,189.49,189.4,29.03491484]
[1735227013618,3.44,189.49,189.38,107.17578467]
[1735227014219,3.44,189.49,189.38,109.81858467]
[1735227014220,2.6421,189.44,189.38,109.81858467]
[1735227014418,6.1021,189.44,189.38,109.81858467]
[1735227014713,3.46,189.44,189.39,2.6427]
[1735227015418,2.6419,189.46,189.39,2.6427]
[1735227015719,3.46,189.45,189.39,2.6427]
[1735227015917,3.46,189.45,189.38,107.17578467]
[1735227015918,2.6422,189.44,189.38,107.17578467]
[1735227016216,3.46,189.45,189.38,107.17578467]
[1735227016409,4.7858,189.54,189.38,107.17578467]
[1735227016613,3.46,189.53,189.4,19.61702392]
[1735227016822,3.46,189.53,189.41,4.6578]
[1735227017410,3.46,189.53,189.48,2.6415]
[1735227017819,2.6403,189.57,189.51,2.6411]
[1735227018024,3.46,189.56,189.44,19.61702392]
[1735227018317,3.46,189.59,189.54,2.6407]
[1735227019018,3.46,189.59,189.47,3.46]
[1735227019218,6.1,189.59,189.48,3.113]
[1735227019419,6.1,189.59,189.49,1.6457]
[1735227020516,2.6402,189.58,189.52,2.6408]
[1735227020815,19.61702392,189.65,189.49,1.6457]
[1735227021013,3.58,189.63,189.49,1.6457]
[1735227021920,19.61702392,189.69,189.49,1.6457]
[1735227022121,2.6389,189.67,189.52,19.61702392]
[1735227022321,2.6389,189.67,189.53,3.58]
[1735227022523,3.58,189.66,189.53,3.58]
[1735227022815,2.6393,189.64,189.57,2.6402]
[1735227023025,3.58,189.66,189.57,2.6402]
[1735227023221,3.58,189.66,189.52,23.19702392]
[1735227023419,2.6393,189.65,189.59,2.64]
[1735227023821,3.58,189.66,189.52,23.19702392]
[1735227024922,6.219,189.66,189.52,23.19702392]
[1735227025324,3.58,189.66,189.6,2.6398]
[1735227026725,4.9093,189.7,189.56,19.61702392]
[1735227026927,3.58,189.69,189.57,4.9705]
[1735227027128,3.58,189.69,189.66,2.639]
[1735227027528,1.5355,189.75,189.58,3.58]
[1735227027730,1.5355,189.75,189.6,19.61702392]
[1735227027930,3.58,189.75,189.6,19.61702392]
[1735227028125,2.6382,189.73,189.6,19.61702392]
[1735227028522,3.58,189.75,189.6,19.61702392]
[1735227028728,2.638,189.74,189.67,2.6388]
[1735227029032,3.58,189.75,189.6,19.61702392]
[1735227029229,2.6381,189.73,189.64,2.6392]
[1735227029431,3.58,189.75,189.6,19.61702392]
[1735227029827,2.638,189.73,189.66,2.6389]
[1735227030129,3.56,189.74,189.6,19.61702392]
[1735227031429,1.5355,189.77,189.6,19.61702392]
[1735227031624,19.61702392,189.83,189.64,19.61702392]
[1735227031824,3.56,189.82,189.65,8.2241]
[1735227032225,1.6482,189.81,189.65,8.2241]
[1735227032432,19.61702392,189.79,189.65,8.2241]
[1735227032632,19.61702392,189.79,189.65,4.6641]
[1735227033732,2.6378,189.75,189.69,2.6386]
[1735227034132,2.6376,189.77,189.71,2.6383]
[1735227034335,3.56,189.8,189.65,4.6641]
[1735227034530,8.5351,189.81,189.65,4.6641]
[1735227034830,8.5351,189.81,189.68,19.61702392]
[1735227035032,8.5351,189.81,189.65,4.6641]
[1735227035237,2.6373,189.79,189.65,4.6641]
[1735227035633,4.9751,189.81,189.65,4.6641]
[1735227035832,3.56,189.8,189.65,4.6641]
[1735227036339,2.6368,189.82,189.75,2.6376]
[1735227037035,2.6371,189.8,189.71,3.56]
[1735227037738,2.6373,189.79,189.68,23.17702392]
[1735227037935,2.6373,189.79,189.68,3.56]
[1735227038136,3.56,189.82,189.68,3.56]
[1735227038336,2.6374,189.78,189.72,2.6382]
[1735227038539,3.56,189.82,189.68,3.56]
[1735227038736,2.6376,189.77,189.71,2.6383]
[1735227039433,3.56,189.82,189.68,3.56]
[1735227039739,2.6377,189.76,189.69,2.6385]
[1735227039940,2.6377,189.76,189.65,8.2241]
[1735227040242,3.56,189.82,189.68,2.6387]
[1735227040432,3.56,189.82,189.65,4.6641]
[1735227041035,3.56,189.82,189.72,2.6381]
[1735227041538,2.6374,189.78,189.72,2.6381]
[1735227042539,2.6372,189.79,189.73,2.638]
[1735227042841,2.6372,189.79,189.65,4.6641]
[1735227043035,2.6372,189.79,189.69,2.6386]
[1735227043237,2.6374,189.78,189.65,4.6641]
[1735227043542,3.56,189.82,189.65,4.6641]
[1735227043842,2.6372,189.79,189.72,2.6381]
[1735227044341,2.6372,189.79,189.67,12.23538234]
[1735227044541,3.56,189.79,189.67,12.23538234]
[1735227044744,12.23538234,189.85,189.7,12.23538234]
[1735227044939,2.6364,189.85,189.73,12.23538234]
[1735227045138,3.56,189.89,189.76,12.23538234]
[1735227045538,15.79538234,189.89,189.76,12.23538234]
[1735227045941,3.56,189.89,189.76,12.23538234]
[1735227046141,0.18565,189.9,189.76,19.55402029]
[1735227046343,0.18565,189.9,189.85,2.6363]
[1735227046942,0.18565,189.9,189.84,2.6365]
[1735227047138,0.18565,189.9,189.76,19.55402029]
[1735227047538,0.18565,189.9,189.76,23.11402029]
[1735227047845,0.18565,189.9,189.75,3.56]
[1735227048245,2.6365,189.85,189.79,2.6372]
[1735227049747,3.56,189.85,189.79,2.6372]
[1735227049950,2.6365,189.84,189.79,2.6372]
[1735227050243,3.56,189.85,189.74,4.7012]
[1735227051146,0.18565,189.9,189.74,4.7012]
[1735227051545,3.5,189.91,189.74,4.7012]
[1735227051546,2.636,189.88,189.74,4.7012]
[1735227051948,3.5,189.91,189.74,4.7012]
[1735227052148,2.6363,189.86,189.8,2.6369]
[1735227052452,3.5,189.91,189.74,4.7012]
[1735227053050,2.6361,189.88,189.81,2.6368]
[1735227053752,2.6362,189.87,189.81,2.6368]
[1735227053950,3.5,189.91,189.79,2.6372]
[1735227054150,19.55402029,189.9,189.74,4.7012]
[1735227054356,2.6366,189.84,189.74,4.7012]
[1735227054653,3.5,189.84,189.79,2.6371]
[1735227054852,6.1365,189.84,189.79,2.6371]
[1735227055044,6.1365,189.84,189.74,4.7012]
[1735227055553,2.637,189.81,189.76,2.6376]
[1735227056049,3.5,189.84,189.76,2.6376]
[1735227056249,3.5,189.84,189.74,3.1641]
[1735227056449,3.5,189.84,189.75,2.6378]
[1735227056744,2.637,189.81,189.75,2.6378]
[1735227056951,3.5,189.84,189.74,3.1641]
[1735227058049,3.5,189.84,189.7,7.22793616]
[1735227058852,3.5,189.84,189.74,2.6379]
[1735227058853,2.6373,189.79,189.74,2.6379]
[1735227059053,6.1373,189.79,189.74,2.6379]
[1735227059648,6.1373,189.79,189.75,2.6378]
[1735227059846,72.80897212,189.9,189.7,33.17851753]
[1735227060048,3.5,189.92,189.76,19.55402029]
[1735227060247,3.5,189.92,189.85,2.6363]
[1735227060550,4.7544,189.93,189.77,6.8075]
[1735227060751,3.5,189.92,189.8,19.55402029]
[1735227061745,4.7544,189.93,189.82,7.22793616]
[1735227061953,3.5,189.92,189.85,2.6363]
[1735227062153,2.6356,189.91,189.82,7.22793616]
[1735227062353,3.5,189.92,189.82,7.22793616]
[1735227062555,23.05402029,189.92,189.82,7.22793616]
[1735227063157,19.55402029,189.88,189.82,7.22793616]
[1735227063359,3.5,189.87,189.82,4.69683616]
[1735227063655,3.5,189.87,189.74,26.38064464]
[1735227064047,2.6364,189.85,189.81,2.6369]
[1735227064256,6.1364,189.85,189.81,2.6369]
[1735227064461,6.1364,189.85,189.74,26.38064464]
[1735227064462,3.5,189.85,189.74,8.96909433]
[1735227064757,3.5,189.85,189.82,2.6367]
[1735227065260,3.5,189.9,189.86,2.6362]
[1735227066053,4.7544,189.93,189.75,27.51086665]
[1735227066054,3.185,189.93,189.8,19.55402029]
[1735227066253,3.5,189.94,189.81,1.6351]
[1735227066459,3.70511,189.95,189.81,1.6351]
[1735227066856,3.70511,189.95,189.85,2.6363]
[1735227067049,3.70511,189.95,189.82,1.6644]
[1735227067456,3.70511,189.95,189.86,21.68380848]
[1735227068557,3.5,189.95,189.85,21.68380848]
[1735227069058,2.6354,189.92,189.85,24.32010848]
[1735227069256,2.6354,189.92,189.85,2.6363]
[1735227069663,3.5,189.95,189.84,21.68380848]
[1735227069861,4.7699,189.94,189.84,21.68380848]
[1735227070159,2.6361,189.87,189.84,21.68380848]
[1735227070361,3.5,189.87,189.84,21.68380848]
[1735227070559,3.5,189.87,189.8,21.68380848]
[1735227070763,6.1361,189.87,189.82,2.6367]
[1735227071160,6.1361,189.87,189.8,21.68380848]
[1735227071564,6.1361,189.87,189.78,1.6245]
[1735227071763,2.6362,189.86,189.81,2.6369]
[1735227071965,3.5,189.87,189.78,1.6245]
[1735227072264,2.6366,189.84,189.77,24.32110848]
[1735227072459,3.5,189.87,189.77,24.32110848]
[1735227072860,2.6373,189.79,189.77,21.68380848]
[1735227073063,3.5,189.81,189.77,21.68380848]
[1735227073257,3.5,189.8,189.77,21.68380848]
[1735227073457,2.6372,189.79,189.73,21.68380848]
[1735227073661,3.5,189.8,189.73,21.68380848]
[1735227074161,2.6375,189.78,189.73,21.68380848]
[1735227074368,3.5,189.8,189.72,2.6382]
[1735227074862,2.6373,189.79,189.72,2.6382]
[1735227075066,3.5,189.8,189.72,2.6382]
[1735227075263,3.5,189.8,189.7,2.6384]
[1735227076361,2.6375,189.77,189.7,2.6384]
[1735227076565,3.5,189.8,189.69,1.5974]
[1735227077171,2.6375,189.78,189.69,1.5974]
[1735227077369,3.5,189.8,189.76,2.6376]
[1735227077569,3.5,189.8,189.69,1.5974]
[1735227077870,3.5,189.8,189.72,2.6381]
[1735227078070,3.5,189.8,189.69,5.0974]
[1735227079069,6.1371,189.8,189.74,2.6378]
[1735227079468,6.1371,189.8,189.69,5.0974]
[1735227079469,2.6372,189.79,189.73,2.638]
[1735227079665,3.5,189.8,189.69,5.0974]
[1735227080069,2.6373,189.79,189.73,2.638]
[1735227080263,3.5,189.8,189.69,5.0974]
[1735227080467,3.5,189.8,189.69,1.5974]
[1735227081667,2.6375,189.78,189.72,2.6381]
[1735227082267,6.1372,189.8,189.73,2.638]
[1735227082470,6.1372,189.8,189.69,1.5974]
[1735227083473,6.1372,189.8,189.74,2.6379]
[1735227083871,3.5,189.8,189.69,1.5974]
[1735227084070,3.52,189.8,189.69,1.5974]
[1735227085173,6.1568,189.82,189.69,1.5974]
[1735227085375,3.52,189.82,189.69,1.5974]
[1735227085571,3.52,189.82,189.72,2.6381]
[1735227085772,2.6371,189.8,189.69,1.5974]
[1735227085974,3.52,189.82,189.69,1.5974]
[1735227086678,2.637,189.81,189.69,1.5974]
[1735227086878,3.52,189.8,189.69,1.5974]
[1735227087081,3.52,189.8,189.69,5.1174]
[1735227087375,4.8096,189.86,189.71,19.55402029]
[1735227087578,1.6396,189.86,189.71,19.55402029]
[1735227087776,3.52,189.85,189.75,19.55402029]
[1735227087979,3.52,189.86,189.76,3.3229]
[1735227088377,3.52,189.85,189.79,2.6372]
[1735227088670,3.52,189.85,189.76,3.3229]
[1735227088873,2.6367,189.83,189.78,2.6373]
[1735227090277,3.52,189.85,189.76,3.3229]
[1735227090479,3.52,189.85,189.71,19.55402029]
[1735227090777,0.19023,189.9,189.71,19.55402029]
[1735227090980,0.19023,189.9,189.79,19.55402029]
[1735227091179,0.19023,189.9,189.8,8.3601]
[1735227091379,0.19023,189.9,189.88,2.6359]
[1735227091573,0.19023,189.9,189.8,8.3601]
[1735227092483,0.19023,189.9,189.89,2.6358]
[1735227093280,0.19023,189.9,189.8,4.8401]
[1735227093483,0.19023,189.9,189.8,8.3601]
[1735227093677,0.19023,189.9,189.83,2.6367]
[1735227093878,3.52,189.89,189.8,4.8401]
[1735227094387,6.1559,189.89,189.82,2.6368]
[1735227095380,3.52,189.89,189.75,19.55402029]
[1735227095582,6.8125,189.89,189.75,19.55402029]
[1735227096181,2.6362,189.87,189.75,19.55402029]
[1735227096380,6.8125,189.89,189.74,4.8518]
[1735227096985,2.6364,189.85,189.78,2.6373]
[1735227097184,3.52,189.84,189.78,2.6373]
[1735227097483,3.52,189.84,189.74,4.2852]
[1735227097682,3.52,189.84,189.68,3.0672]
[1735227097987,3.52,189.84,189.71,19.55402029]
[1735227098687,3.52,189.84,189.79,2.6372]
[1735227098988,3.52,189.84,189.72,3.52]
[1735227099383,3.52,189.84,189.75,2.6377]
[1735227099583,3.52,189.84,189.72,3.52]
[1735227100282,3.52,189.84,189.78,2.6373]
[1735227100689,3.52,189.84,189.72,3.52]
[1735227100986,3.2925,189.89,189.75,19.55402029]
[1735227101183,3.52,189.87,189.76,1.5585]
[1735227101581,3.52,189.87,189.77,3.2422]
[1735227101989,0.19023,189.9,189.79,19.55402029]
[1735227102386,0.19023,189.9,189.83,19.55402029]
[1735227102686,0.19023,189.9,189.79,19.55402029]
[1735227103186,2.6358,189.89,189.82,2.6367]
[1735227103389,3.52,189.88,189.79,19.55402029]
[1735227104187,3.52,189.88,189.82,2.6368]
[1735227105492,3.52,189.88,189.78,1.5429]
[1735227106188,3.52,189.88,189.79,2.6372]
[1735227107283,2.6364,189.85,189.78,2.6373]
[1735227107488,3.2017,189.87,189.71,19.55402029]
[1735227107688,3.2017,189.87,189.72,1.6113]
[1735227108193,2.6366,189.84,189.77,2.6374]
[1735227108393,3.52,189.83,189.77,2.6374]
[1735227109194,2.6368,189.82,189.72,1.6113]
[1735227109389,3.52,189.83,189.72,1.6113]
[1735227109895,1.5424,189.86,189.72,1.6113]
[1735227110091,3.58,189.85,189.72,1.6113]
[1735227111887,6.2164,189.85,189.75,2.6376]
[1735227112190,3.58,189.85,189.72,1.6113]
[1735227112595,6.2164,189.85,189.72,1.6113]
[1735227113291,2.6364,189.85,189.78,2.6372]
[1735227113490,6.2164,189.85,189.72,1.6113]
[1735227113690,2.6363,189.86,189.72,1.6113]
[1735227113892,3.58,189.85,189.81,2.6369]
[1735227114091,0.19023,189.9,189.81,2.6369]
[1735227114293,3.58,189.89,189.81,2.6369]
[1735227114493,3.58,189.88,189.81,2.6369]
[1735227115094,3.58,189.88,189.79,2.6371]
[1735227115293,3.58,189.88,189.76,3.2724]
[1735227115499,1.6191,189.87,189.76,3.2724]
[1735227115899,1.6191,189.87,189.72,1.6113]
[1735227116301,2.6372,189.8,189.75,2.6378]
[1735227116500,3.58,189.8,189.72,1.6113]
[1735227116795,3.58,189.83,189.74,12.23050526]
[1735227116995,3.58,189.83,189.77,12.23050526]
[1735227117595,2.6363,189.86,189.77,12.23050526]
[1735227117795,3.58,189.85,189.77,12.23050526]
[1735227118096,3.58,189.85,189.8,2.637]
[1735227119101,3.58,189.85,189.77,12.23050526]
[1735227119295,3.58,189.85,189.81,2.6369]
[1735227119901,6.2164,189.85,189.8,2.637]
[1735227120599,6.2164,189.85,189.77,12.23050526]
[1735227120800,0.19023,189.9,189.77,12.23050526]
[1735227120997,3.58,189.87,189.78,3.0847]
[1735227121698,0.19023,189.9,189.83,12.23050526]
[1735227122704,0.19023,189.9,189.8,13.77290526]
[1735227123206,2.6354,189.92,189.86,2.6361]
[1735227124394,2.6357,189.9,189.83,12.23050526]
[1735227124601,3.58,189.93,189.8,13.77290526]
[1735227124801,12.23050526,189.92,189.78,3.0847]
[1735227125808,12.23050526,189.92,189.77,12.23050526]
[1735227126007,12.23050526,189.89,189.76,1.5718]
[1735227126305,1.6226,189.88,189.78,2.6373]
[1735227126507,3.58,189.87,189.78,2.6373]
[1735227126707,2.6369,189.82,189.77,2.6375]
[1735227127007,3.58,189.81,189.73,3.1393]
[1735227127203,3.58,189.81,189.8,2.6371]
[1735227127506,3.58,189.86,189.77,12.23050526]
[1735227127909,3.58,189.86,189.82,2.6367]
[1735227128208,3.58,189.86,189.77,12.23050526]
[1735227128502,2.6364,189.85,189.78,2.6372]
[1735227128902,3.58,189.86,189.74,12.23050526]
[1735227129100,2.6367,189.83,189.77,2.6374]
[1735227129603,2.6367,189.83,189.74,12.23050526]
[1735227129809,2.6368,189.82,189.74,12.23050526]
[1735227130105,3.58,189.86,189.74,12.23050526]
[1735227130305,1.5706,189.85,189.74,12.23050526]
[1735227130807,1.5706,189.85,189.73,3.1393]
[1735227131108,1.5706,189.85,189.71,119.20756882]
[1735227131408,2.6373,189.79,189.74,2.6378]
[1735227131607,3.58,189.78,189.74,2.6378]
[1735227131807,3.58,189.78,189.75,2.6377]
[1735227132007,3.58,189.78,189.71,12.23050526]
[1735227133312,3.58,189.78,189.68,12.23050526]
[1735227133708,3.58,189.78,189.65,15.29890526]
[1735227134205,1.5706,189.85,189.65,15.29890526]
[1735227134405,7.904,189.98,189.74,12.23050526]
[1735227134610,12.23050526,189.89,189.75,4.9582]
[1735227134907,6.216,189.88,189.81,2.6369]
[1735227135103,3.58,189.88,189.81,2.6369]
[1735227135309,3.58,189.88,189.77,12.23050526]
[1735227135508,6.2161,189.88,189.8,2.6369]
[1735227136009,3.58,189.88,189.8,2.6369]
[1735227136416,3.58,189.88,189.82,2.6368]
[1735227136711,6.2161,189.88,189.82,2.6368]
[1735227137107,3.58,189.88,189.83,2.6366]
[1735227138716,3.58,189.88,189.77,12.23050526]
[1735227138916,6.216,189.88,189.77,12.23050526]
[1735227139215,3.58,189.88,189.77,12.23050526]
[1735227139612,1.6406,189.9,189.77,12.23050526]
[1735227139916,3.54,189.89,189.77,12.23050526]
[1735227140211,2.636,189.88,189.81,2.6368]
[1735227141017,3.54,189.89,189.77,12.23050526]
[1735227141314,15.77050526,189.89,189.75,4.9582]
[1735227141817,2.6365,189.84,189.78,2.6373]
[1735227142017,3.54,189.83,189.75,4.9582]
[1735227143715,3.54,189.83,189.78,2.6373]
[1735227143919,3.54,189.83,189.71,12.23050526]
[1735227144114,15.77050526,189.83,189.68,16.93030526]
[1735227144617,12.23050526,189.8,189.68,4.6998]
[1735227145118,12.23050526,189.8,189.69,2.6386]
[1735227145816,2.6377,189.76,189.7,2.6384]
[1735227146015,1.6138,189.82,189.68,16.93030526]
[1735227146225,2.6368,189.82,189.76,2.6375]
[1735227146816,15.77050526,189.83,189.71,12.23050526]
[1735227147021,2.6371,189.8,189.74,2.6378]
[1735227147418,2.6373,189.79,189.68,16.93030526]
[1735227147723,15.77050526,189.83,189.68,16.93030526]
[1735227148126,2.6374,189.78,189.68,16.93030526]
[1735227148327,3.54,189.78,189.68,16.93030526]
[1735227148621,2.6379,189.74,189.68,1.534]
[1735227148825,3.54,189.73,189.65,107.01251324]
[1735227149322,3.54,189.73,189.64,12.23050526]
[1735227150027,3.54,189.73,189.68,2.6386]
[1735227150229,3.54,189.73,189.67,12.23050526]
[1735227150729,3.54,189.73,189.71,2.6382]
[1735227150924,3.54,189.73,189.64,12.23050526]
[1735227151124,3.54,189.73,189.68,2.6387]
[1735227152019,3.54,189.73,189.64,12.23050526]
[1735227152225,3.54,189.78,189.67,12.23050526]
[1735227152425,3.54,189.78,189.68,3.2805]
[1735227152829,3.54,189.78,189.69,1.6128]
[1735227153126,2.6372,189.79,189.72,2.6381]
[1735227153325,3.54,189.78,189.72,2.6381]
[1735227153524,3.54,189.78,189.69,1.6128]
[1735227154027,3.54,189.78,189.74,2.6379]
[1735227155332,1.6718,189.84,189.7,12.23050526]
[1735227155627,3.54,189.83,189.73,12.23050526]
[1735227156025,6.1767,189.83,189.77,2.6374]
[1735227156226,3.54,189.83,189.7,15.77050526]
[1735227156523,2.638,189.74,189.69,1.6128]
[1735227156729,3.54,189.73,189.59,3.54]
[1735227156926,3.54,189.73,189.6,1.6543]
[1735227157121,3.54,189.73,189.6,5.1943]
[1735227157326,6.1781,189.73,189.67,2.6389]
[1735227157825,3.54,189.73,189.6,5.1943]
[1735227158030,3.54,189.73,189.65,2.639]
[1735227158529,3.54,189.73,189.6,1.6543]
[1735227158731,15.77050526,189.73,189.6,1.6543]